fUSD/lending_fUSD_20241215
["ID","MTS","AMOUNT","RATE_DAILY","PERIOD"]
[345404746,1734244238565,-500.0,0.00013878,2]
[345404748,1734244238574,-500.0,0.00013878,2]
[345404750,1734244238584,-500.0,0.00013878,2]
[345404752,1734244238593,-255.88304035,0.00013878,2]
[345404754,1734244238603,-500.0,0.00013878,2]
[345404756,1734244238612,-520.21473004,0.00013878,2]
[345404758,1734244238622,-443.13339058,0.00013878,2]
[345404760,1734244238631,-500.0,0.00013878,2]
[345404762,1734244238641,-505.74124963,0.00013878,2]
[345404764,1734244238650,-277.70096685,0.00013878,2]
[345404766,1734244238660,-509.51059459,0.00013878,2]
[345404768,1734244238670,-500.0,0.00013878,2]
[345404770,1734244238679,-500.0,0.00013878,2]
[345404772,1734244238689,-500.0,0.00013878,2]
[345404774,1734244238699,-585.02227419,0.00013878,2]
[345404776,1734244238708,-511.00060583,0.00013878,2]
[345404778,1734244238718,-505.52695464,0.00013878,2]
[345404780,1734244238727,-507.13356194,0.00013878,2]
[345404782,1734244238737,-515.91474676,0.00013878,2]
[345404784,1734244238747,-505.87671825,0.00013878,2]
[345404786,1734244238756,-506.15066175,0.00013878,2]
[345404788,1734244238766,-521.60348707,0.00013878,2]
[345404790,1734244238776,-500.0,0.00013878,2]
[345404792,1734244238786,-509.92481051,0.00013878,2]
[345404794,1734244238796,-500.0,0.00013878,2]
[345404796,1734244238814,-500.0,0.00013878,2]
[345404798,1734244238824,-607.5858446,0.00013878,2]
[345404800,1734244238833,-357.16889032,0.00013878,2]
[345404802,1734244238843,-508.15017917,0.00013878,2]
[345404804,1734244238853,-500.0,0.00013878,2]
[345404834,1734244238863,-500.0,0.00013878,2]
[345404836,1734244239141,-500.0,0.00013878,2]
[345404838,1734244239151,-510.58392465,0.00013878,2]
[345404841,1734244239163,-510.25028851,0.00013878,2]
[345404843,1734244239172,-500.0,0.00013878,2]
[345404845,1734244239182,-645.7534877,0.00013878,2]
[345404847,1734244239191,-517.84475793,0.00013878,2]
[345404848,1734244239200,-500.0,0.00013878,2]
[345404850,1734244239211,-511.27816912,0.00013878,2]
[345404852,1734244239220,-500.0,0.00013878,2]
[345404854,1734244239229,-500.0,0.00013878,2]
[345404855,1734244239240,-500.0,0.00013878,2]
[345404856,1734244239249,-506.82267805,0.00013878,2]
[345404857,1734244239259,-500.0,0.00013878,2]
[345404858,1734244239270,-500.0,0.00013878,2]
[345404859,1734244239280,-500.0,0.00013878,2]
[345404860,1734244239289,-500.0,0.00013878,2]
[345404861,1734244239304,-500.0,0.00013878,2]
[345404862,1734244239314,-500.0,0.00013878,2]
[345404863,1734244239323,-500.0,0.00013878,2]
[345404864,1734244239332,-500.0,0.00013878,2]
[345404865,1734244239341,-500.0,0.00013878,2]
[345404866,1734244239351,-500.0,0.00013878,2]
[345404867,1734244239360,-500.0,0.00013878,2]
[345404868,1734244239369,-500.0,0.00013878,2]
[345404869,1734244239378,-500.0,0.00013878,2]
[345404870,1734244239388,-500.0,0.00013878,2]
[345404871,1734244239401,-500.0,0.00013878,2]
[345404872,1734244239413,-500.0,0.00013878,2]
[345404875,1734244239428,-500.0,0.00013878,2]
[345404877,1734244239440,-500.0,0.00013878,2]
[345404879,1734244239451,-178.61586571,0.00013878,2]
[345404880,1734244239461,-500.0,0.00013878,2]
[345404881,1734244239472,-500.0,0.00013878,2]
[345404882,1734244239483,-500.0,0.00013878,2]
[345404883,1734244239495,-500.0,0.00013878,2]
[345404884,1734244239506,-349.1915356,0.00013878,2]
[345404885,1734244239515,-500.0,0.00013878,2]
[345404886,1734244239525,-500.0,0.00013878,2]
[345404887,1734244239535,-500.0,0.00013878,2]
[345404888,1734244239544,-500.0,0.00013878,2]
[345404889,1734244239561,-500.0,0.00013878,2]
[345404890,1734244239572,-500.0,0.00013878,2]
[345404891,1734244239582,-500.0,0.00013878,2]
[345404892,1734244239592,-500.0,0.00013878,2]
[345404893,1734244239603,-500.0,0.00013878,2]
[345404894,1734244239613,-500.0,0.00013878,2]
[345404895,1734244239623,-500.0,0.00013878,2]
[345404896,1734244239634,-500.0,0.00013878,2]
[345404897,1734244239644,-500.0,0.00013878,2]
[345404898,1734244239653,-500.0,0.00013878,2]
[345404899,1734244239663,-227.84085181,0.00013878,2]
[345404900,1734244239672,-500.0,0.00013878,2]
[345404901,1734244239682,-500.0,0.00013878,2]
[345404902,1734244239692,-500.76051655,0.00013878,2]
[345404903,1734244239701,-500.0,0.00013878,2]
[345404904,1734244239711,-500.0,0.00013878,2]
[345404905,1734244239721,-500.0,0.00013878,2]
[345404906,1734244239730,-500.0,0.00013878,2]
[345404907,1734244239740,-500.0,0.00013878,2]
[345404908,1734244239750,-500.0,0.00013878,2]
[345404909,1734244239759,-257.64161655,0.00013878,2]
[345404910,1734244239769,-500.0,0.00013878,2]
[345404911,1734244239779,-500.0,0.00013878,2]
[345404912,1734244239789,-500.0,0.00013878,2]
[345404913,1734244239801,-500.0,0.00013878,2]
[345404914,1734244239814,-500.0,0.00013878,2]
[345404915,1734244239823,-500.0,0.00013878,2]
[345404916,1734244239834,-503.35643024,0.00013878,2]
[345404917,1734244239844,-501.90903005,0.00013878,2]
[345404918,1734244239853,-329.49438966,0.00013878,2]
[345404919,1734244239863,-500.0,0.00013878,2]
[345404920,1734244239872,-500.0,0.00013878,2]
[345404921,1734244239882,-608.69,0.00013878,2]
[345404922,1734244239892,-391.78192873,0.00013878,2]
[345404923,1734244239902,-500.0,0.00013878,2]
[345404924,1734244239912,-502.514269,0.00013878,2]
[345404925,1734244239921,-501.44669399,0.00013878,2]
[345404926,1734244239930,-500.0,0.00013878,2]
[345404927,1734244239940,-500.0,0.00013878,2]
[345404928,1734244239954,-561.59831269,0.00013878,2]
[345404929,1734244239964,-474.32,0.00013878,2]
[345404930,1734244239973,-500.0,0.00013878,2]
[345404931,1734244239983,-500.0,0.00013878,2]
[345404932,1734244239992,-501.07427062,0.00013878,2]
[345404933,1734244240002,-501.18172461,0.00013878,2]
[345404934,1734244240012,-503.56912244,0.00013878,2]
[345404935,1734244240022,-256.18795774,0.00013878,2]
[345404936,1734244240032,-500.0,0.00013878,2]
[345404937,1734244240041,-500.0,0.00013878,2]
[345404938,1734244240054,-500.0,0.00013878,2]
[345404939,1734244240064,-500.0,0.00013878,2]
[345404940,1734244240074,-500.0,0.00013878,2]
[345404941,1734244240083,-501.39695088,0.00013878,2]
[345404942,1734244240093,-503.05666132,0.00013878,2]
[345404943,1734244240103,-500.0,0.00013878,2]
[345404944,1734244240113,-500.0,0.00013878,2]
[345404945,1734244240123,-500.0,0.00013878,2]
[345404946,1734244240133,-500.0,0.00013878,2]
[345404947,1734244240142,-502.0184308,0.00013878,2]
[345404948,1734244240152,-500.0,0.00013878,2]
[345404949,1734244240161,-500.0,0.00013878,2]
[345404950,1734244240172,-500.0,0.00013878,2]
[345404951,1734244240182,-500.0,0.00013878,2]
[345404952,1734244240192,-500.0,0.00013878,2]
[345404953,1734244240201,-500.0,0.00013878,2]
[345404954,1734244240211,-501.18035659,0.00013878,2]
[345404955,1734244240220,-634.55,0.00013878,2]
[345404956,1734244240229,-504.12009357,0.00013878,2]
[345404957,1734244240239,-500.0,0.00013878,2]
[345404958,1734244240248,-500.0,0.00013878,2]
[345404959,1734244240258,-500.0,0.00013878,2]
[345404960,1734244240267,-500.0,0.00013878,2]
[345404961,1734244240277,-502.72415486,0.00013878,2]
[345404962,1734244240287,-500.0,0.00013878,2]
[345404963,1734244240297,-500.0,0.00013878,2]
[345404964,1734244240309,-500.0,0.00013878,2]
[345404965,1734244240319,-500.0,0.00013878,2]
[345404966,1734244240330,-500.0,0.00013878,2]
[345404967,1734244240340,-500.0,0.00013878,2]
[345404968,1734244240350,-500.0,0.00013878,2]
[345404969,1734244240359,-500.0,0.00013878,2]
[345404970,1734244240369,-500.0,0.00013878,2]
[345404971,1734244240379,-500.0,0.00013878,2]
[345404972,1734244240388,-500.0,0.00013878,2]
[345404973,1734244240398,-500.0,0.00013878,2]
[345404974,1734244240408,-555.11921625,0.00013878,2]
[345404975,1734244240417,-500.0,0.00013878,2]
[345404976,1734244240427,-583.84,0.00013878,2]
[345404977,1734244240436,-500.0,0.00013878,2]
[345404978,1734244240445,-500.0,0.00013878,2]
[345404979,1734244240455,-500.0,0.00013878,2]
[345404980,1734244240464,-500.0,0.00013878,2]
[345404981,1734244240473,-778.0,0.00013878,2]
[345404982,1734244240483,-500.0,0.00013878,2]
[345404983,1734244240492,-587.39087274,0.00013878,2]
[345404984,1734244240501,-500.0,0.00013878,2]
[345404985,1734244240511,-500.0,0.00013878,2]
[345404986,1734244240520,-500.0,0.00013878,2]
[345404987,1734244240529,-1259.6,0.00013878,2]
[345404988,1734244240538,-816.92,0.00013878,2]
[345404989,1734244240548,-500.0,0.00013878,2]
[345404990,1734244240561,-500.0,0.00013878,2]
[345404991,1734244240571,-500.0,0.00013878,2]
[345404992,1734244240581,-500.0,0.00013878,2]
[345404993,1734244240591,-1000.0,0.00013878,2]
[345404994,1734244240601,-500.0,0.00013878,2]
[345404995,1734244240610,-503.70676302,0.00013878,2]
[345404996,1734244240620,-500.0,0.00013878,2]
[345404997,1734244240629,-557.13,0.00013878,2]
[345404998,1734244240639,-500.0,0.00013878,2]
[345404999,1734244240663,-500.0,0.00013878,2]
[345405000,1734244240675,-500.0,0.00013878,2]
[345405001,1734244240687,-500.0,0.00013878,2]
[345405002,1734244240698,-500.0,0.00013878,2]
[345405003,1734244240709,-500.0,0.00013878,2]
[345405004,1734244240719,-500.0,0.00013878,2]
[345405005,1734244240731,-500.0,0.00013878,2]
[345405006,1734244240742,-500.0,0.00013878,2]
[345405007,1734244240753,-500.0,0.00013878,2]
[345405008,1734244240765,-500.0,0.00013878,2]
[345405009,1734244240776,-500.0,0.00013878,2]
[345405010,1734244240786,-546.34814813,0.00013878,2]
[345405011,1734244240801,-1000.06,0.0001388,2]
[345405012,1734244240811,-2007.58266532,0.00013889,2]
[345405013,1734244240822,-150.121515,0.00013898,3]
[345405014,1734244240832,-150.121515,0.00013898,2]
[345405015,1734244240842,-1245.853,0.00013899,2]
[345405016,1734244240854,-324.02666262,0.00013899,2]
[345405017,1734244240865,-1100.0,0.000139,5]
[345405018,1734244240875,-150.121515,0.00013948,2]
[345405019,1734244240885,-150.121515,0.00013948,3]
[345405020,1734244240899,-390.90787823,0.00013958,2]
[345405021,1734244240911,-216.14314451,0.0001396,2]
[345405022,1734244240922,-567.8873061,0.0001396,2]
[345405023,1734244240933,-580.39623012,0.00013962,2]
[345405024,1734244240945,-10127.16831896,0.00013962,2]
[345405025,1734244240957,-2531.01947322,0.00013962,2]
[345405026,1734244240970,-10127.16831896,0.00013965,2]
[345405027,1734244240980,-10127.16831896,0.00013965,2]
[345405028,1734244240991,-10127.16831896,0.00013967,2]
[345405029,1734244241001,-2531.01947322,0.00013967,2]
[345405030,1734244241012,-390.90787823,0.00013967,2]
[345405031,1734244241022,-580.39623012,0.00013967,2]
[345405032,1734244241032,-580.39623012,0.00013969,2]
[345405033,1734244241042,-390.90787823,0.00013969,2]
[345405034,1734244241056,-567.8873061,0.00013969,2]
[345405035,1734244241066,-567.8873061,0.00013971,2]
[345405036,1734244241076,-2531.01947322,0.00013971,2]
[345405037,1734244241086,-500.0,0.00013973,2]
[345405038,1734244241096,-2531.01947322,0.00013973,2]
[345405039,1734244241106,-580.39623012,0.00013976,2]
[345405040,1734244241116,-216.14314451,0.00013976,2]
[345405041,1734244241126,-216.14314451,0.0001398,2]
[345405042,1734244241137,-567.8873061,0.0001398,2]
[345405043,1734244241147,-580.39623012,0.00013981,2]
[345405044,1734244241162,-580.39623012,0.00013982,2]
[345405045,1734244241172,-390.90787823,0.00013983,2]
[345405046,1734244241184,-567.8873061,0.00013983,2]
[345405047,1734244241193,-216.14314451,0.00013985,2]
[345405048,1734244241203,-2531.01947322,0.00013987,2]
[345405049,1734244241214,-216.14314451,0.00013987,2]
[345405050,1734244241224,-390.90787823,0.00013987,2]
[345405051,1734244241234,-10127.16831896,0.00013988,2]
[345405052,1734244241244,-2531.01947322,0.00013989,2]
[345405053,1734244241255,-390.90787823,0.00013989,2]
[345405054,1734244241264,-500.0,0.00013989,2]
[345405055,1734244241274,-1456.54,0.00013989,2]
[345405056,1734244241285,-549.43,0.00013989,2]
[345405057,1734244241295,-1334.64,0.00013989,2]
[345405058,1734244241310,-500.0,0.00013989,2]
[345405059,1734244241320,-500.0,0.00013989,2]
[345405060,1734244241330,-1223.33,0.00013989,2]
[345405061,1734244241341,-500.0,0.00013989,2]
[345405062,1734244241351,-500.0,0.00013989,2]
[345405063,1734244241361,-1947.53,0.00013989,2]
[345405064,1734244241371,-3305.05,0.00013989,2]
[345405065,1734244241381,-500.0,0.00013989,2]
[345405066,1734244241391,-500.0,0.00013989,2]
[345405067,1734244241402,-500.0,0.00013989,2]
[345405068,1734244241411,-970.18,0.00013989,2]
[345405069,1734244241421,-1434.28,0.00013989,2]
[345405070,1734244241431,-567.8873061,0.00013989,2]
[345405071,1734244241440,-500.0,0.00013989,2]
[345405072,1734244241450,-500.0,0.00013989,2]
[345405073,1734244241460,-718.55,0.00013989,2]
[345405074,1734244241471,-500.0,0.00013989,2]
[345405075,1734244241481,-500.0,0.00013989,2]
[345405076,1734244241491,-500.0,0.00013989,2]
[345405077,1734244241501,-502.43,0.00013989,2]
[345405078,1734244241511,-500.0,0.00013989,2]
[345405079,1734244241521,-519.73,0.00013989,2]
[345405080,1734244241531,-500.0,0.00013989,2]
[345405081,1734244241541,-637.74,0.00013989,2]
[345405082,1734244241553,-500.0,0.00013989,2]
[345405083,1734244241567,-511.36,0.00013989,2]
[345405084,1734244241577,-500.0,0.00013989,2]
[345405085,1734244241588,-500.0,0.00013989,2]
[345405086,1734244241598,-676.94,0.00013989,2]
[345405087,1734244241610,-472.07349877,0.00013989,2]
[345405088,1734244241621,-500.0,0.00013989,2]
[345405089,1734244241631,-500.0,0.00013989,2]
[345405090,1734244241641,-682.7,0.00013989,2]
[345405091,1734244241651,-500.0,0.00013989,2]
[345405092,1734244241661,-500.0,0.00013989,2]
[345405093,1734244241676,-741.98,0.00013989,2]
[345405094,1734244241686,-500.0,0.00013989,2]
[345405095,1734244241696,-500.0,0.00013989,2]
[345405096,1734244241705,-500.0,0.00013989,2]
[345405097,1734244241715,-500.0,0.00013989,2]
[345405098,1734244241726,-646.69,0.00013989,2]
[345405099,1734244241736,-877.49,0.00013989,2]
[345405100,1734244241746,-500.0,0.00013989,2]
[345405101,1734244241756,-637.74,0.00013989,2]
[345405102,1734244241767,-500.0,0.00013989,2]
[345405103,1734244241776,-2151.82,0.00013989,2]
[345405104,1734244241786,-500.0,0.00013989,2]
[345405105,1734244241796,-455.49022882,0.00013989,2]
[345405106,1734244241808,-500.0,0.00013989,2]
[345405107,1734244241818,-500.0,0.00013989,2]
[345405108,1734244241829,-500.0,0.00013989,2]
[345405109,1734244241839,-500.0,0.00013989,2]
[345405110,1734244241849,-1904.54,0.00013989,2]
[345405111,1734244241860,-808.86,0.00013989,2]
[345405112,1734244241869,-500.0,0.00013989,2]
[345405113,1734244241879,-500.0,0.00013989,2]
[345405114,1734244241889,-1220.62,0.00013989,2]
[345405115,1734244241899,-500.0,0.00013989,2]
[345405116,1734244241909,-703.22,0.00013989,2]
[345405117,1734244241920,-14307.42351547,0.0001399,2]
[345405121,1734244242388,-8209.09879246,0.0001399,2]
[345405122,1734244242400,-2530.70120691,0.0001399,2]
[345405123,1734244242451,-3097.1785662,0.0001399,2]
[345405124,1734244242548,-430.99948761,0.0001399,2]
[345405125,1734244242564,-2263.41957,0.0001399,2]
[345405126,1734244242576,-1526.265,0.0001399,2]
[345405127,1734244242587,-79397.95,0.0001399,2]
[345405128,1734244242599,-17799.13882042,0.0001399,2]
[345405129,1734244242612,-389.02999999,0.0001399,2]
[345405130,1734244242623,-253.94130098,0.0001399,2]
[345405131,1734244242915,-11458.3971403,0.0001399,2]
[345405132,1734244242927,-25799.87572153,0.0001399,2]
[345405134,1734244245516,-500.0,0.00013876,2]
[345405135,1734244245527,-1272.74,0.00013877,2]
[345405136,1734244245537,-500.0,0.00013989,2]
[345405137,1734244245547,-1272.74,0.00013989,2]
[345405138,1734244245562,-39995.93679421,0.0001399,2]
[345405139,1734244245571,-216.14314451,0.00013991,2]
[345405140,1734244245581,-694.342,0.00013992,2]
[345405141,1734244245591,-634.0,0.00013992,2]
[345405142,1734244245602,-500.0,0.00013994,2]
[345405143,1734244245612,-500.0,0.00013994,2]
[345405144,1734244245622,-500.0,0.00013994,2]
[345405145,1734244245632,-500.0,0.00013994,2]
[345405146,1734244245643,-500.0,0.00013994,2]
[345405147,1734244245653,-501.47479498,0.00013994,2]
[345405148,1734244245663,-500.0,0.00013994,2]
[345405149,1734244245673,-500.0,0.00013994,2]
[345405150,1734244245683,-500.0,0.00013994,2]
[345405151,1734244245693,-500.0,0.00013994,2]
[345405152,1734244245702,-500.0,0.00013994,2]
[345405153,1734244245712,-236.49440271,0.00013994,2]
[345405154,1734244245722,-483.44504118,0.00013994,2]
[345405155,1734244245732,-500.0,0.00013994,2]
[345405156,1734244245742,-500.0,0.00013994,2]
[345405157,1734244245751,-500.0,0.00013994,2]
[345405158,1734244245761,-500.0,0.00013994,2]
[345405159,1734244245772,-500.0,0.00013994,2]
[345405160,1734244245783,-500.0,0.00013994,2]
[345405161,1734244245792,-500.0,0.00013994,2]
[345405162,1734244245802,-500.0,0.00013994,2]
[345405163,1734244245815,-500.0,0.00013994,2]
[345405164,1734244245824,-500.0,0.00013994,2]
[345405165,1734244245834,-500.0,0.00013994,2]
[345405166,1734244245844,-500.0,0.00013994,2]
[345405167,1734244245854,-500.0,0.00013994,2]
[345405168,1734244245865,-500.0,0.00013994,2]
[345405169,1734244245874,-500.0,0.00013994,2]
[345405170,1734244245884,-422.75487228,0.00013994,2]
[345405171,1734244245894,-500.0,0.00013994,2]
[345405172,1734244245904,-182.8,0.00013994,2]
[345405173,1734244245914,-500.0,0.00013994,2]
[345405174,1734244245924,-500.0,0.00013994,2]
[345405175,1734244245933,-500.0,0.00013994,2]
[345405176,1734244245943,-500.0,0.00013994,2]
[345405177,1734244245953,-500.0,0.00013994,2]
[345405178,1734244245963,-249.92,0.00013994,2]
[345405179,1734244245973,-500.0,0.00013994,2]
[345405180,1734244245982,-500.0,0.00013994,2]
[345405181,1734244245992,-500.0,0.00013994,2]
[345405182,1734244246002,-500.0,0.00013994,2]
[345405184,1734244246011,-500.0,0.00013994,2]
[345405186,1734244246021,-500.0,0.00013994,2]
[345405188,1734244246031,-500.0,0.00013994,2]
[345405190,1734244246041,-500.0,0.00013994,2]
[345405191,1734244246050,-500.0,0.00013994,2]
[345405192,1734244246063,-352.45695643,0.00013994,2]
[345405193,1734244246072,-500.0,0.00013994,2]
[345405194,1734244246082,-500.0,0.00013994,2]
[345405195,1734244246091,-500.0,0.00013994,2]
[345405196,1734244246099,-500.0,0.00013994,2]
[345405197,1734244246109,-500.0,0.00013994,2]
[345405198,1734244246119,-500.0,0.00013994,2]
[345405199,1734244246129,-500.0,0.00013994,2]
[345405200,1734244246139,-500.0,0.00013994,2]
[345405201,1734244246149,-500.0,0.00013994,2]
[345405202,1734244246159,-500.0,0.00013994,2]
[345405203,1734244246169,-500.0,0.00013994,2]
[345405204,1734244246179,-500.0,0.00013994,2]
[345405205,1734244246188,-500.0,0.00013994,2]
[345405206,1734244246198,-500.0,0.00013994,2]
[345405207,1734244246207,-500.0,0.00013994,2]
[345405208,1734244246217,-504.02077513,0.00013994,2]
[345405209,1734244246226,-505.46113665,0.00013994,2]
[345405210,1734244246236,-500.0,0.00013994,2]
[345405211,1734244246245,-503.53867724,0.00013994,2]
[345405212,1734244246255,-504.93876696,0.00013994,2]
[345405213,1734244246265,-500.0,0.00013994,2]
[345405214,1734244246275,-500.0,0.00013994,2]
[345405215,1734244246286,-500.0,0.00013994,2]
[345405216,1734244246295,-500.0,0.00013994,2]
[345405217,1734244246308,-500.0,0.00013994,2]
[345405218,1734244246318,-500.0,0.00013994,2]
[345405219,1734244246328,-500.0,0.00013994,2]
[345405220,1734244246338,-778.0,0.00013994,2]
[345405221,1734244246348,-500.0,0.00013994,2]
[345405222,1734244246358,-500.0,0.00013994,2]
[345405223,1734244246367,-500.0,0.00013994,2]
[345405224,1734244246377,-502.36818037,0.00013994,2]
[345405225,1734244246386,-1259.6,0.00013994,2]
[345405226,1734244246395,-816.92,0.00013994,2]
[345405227,1734244246405,-500.0,0.00013994,2]
[345405228,1734244246416,-501.9340179,0.00013994,2]
[345405229,1734244246425,-500.0,0.00013994,2]
[345405230,1734244246436,-500.0,0.00013994,2]
[345405231,1734244246446,-1000.0,0.00013994,2]
[345405232,1734244246456,-500.0,0.00013994,2]
[345405233,1734244246466,-557.13,0.00013994,2]
[345405234,1734244246475,-500.0,0.00013994,2]
[345405235,1734244246485,-500.0,0.00013994,2]
[345405236,1734244246494,-500.0,0.00013994,2]
[345405237,1734244246504,-500.0,0.00013994,2]
[345405238,1734244246514,-500.0,0.00013994,2]
[345405239,1734244246524,-234.69416639,0.00013994,2]
[345405240,1734244246534,-500.0,0.00013994,2]
[345405241,1734244246544,-500.0,0.00013994,2]
[345405242,1734244246557,-453.05261447,0.00013994,2]
[345405243,1734244246568,-237.87052675,0.00013994,2]
[345405244,1734244246579,-10127.16831896,0.00013996,2]
[345405245,1734244246588,-500.0,0.00013996,2]
[345405246,1734244246598,-500.0,0.00013996,2]
[345405247,1734244246607,-500.0,0.00013996,2]
[345405248,1734244246616,-500.0,0.00013996,2]
[345405249,1734244246626,-500.0,0.00013996,2]
[345405250,1734244246636,-500.0,0.00013996,2]
[345405251,1734244246646,-500.0,0.00013996,2]
[345405252,1734244246656,-500.0,0.00013996,2]
[345405253,1734244246666,-500.0,0.00013996,2]
[345405254,1734244246675,-500.0,0.00013996,2]
[345405255,1734244246685,-375.13785296,0.00013996,2]
[345405256,1734244246695,-517.15967867,0.00013996,2]
[345405257,1734244246704,-500.0,0.00013996,2]
[345405258,1734244246714,-500.0,0.00013996,2]
[345405259,1734244246724,-571.42,0.00013996,2]
[345405260,1734244246734,-569.1,0.00013996,2]
[345405261,1734244246744,-504.63218386,0.00013996,2]
[345405262,1734244246753,-191.86065068,0.00013996,2]
[345405263,1734244246763,-500.80172196,0.00013996,2]
[345405264,1734244246773,-500.0,0.00013996,2]
[345405265,1734244246783,-500.0,0.00013996,2]
[345405266,1734244246793,-500.0,0.00013996,2]
[345405267,1734244246803,-535.29569199,0.00013996,2]
[345405268,1734244246816,-500.0,0.00013996,2]
[345405269,1734244246826,-500.0,0.00013996,2]
[345405270,1734244246835,-552.71227014,0.00013996,2]
[345405271,1734244246844,-500.0,0.00013996,2]
[345405272,1734244246854,-1334.64,0.00013996,2]
[345405273,1734244246863,-1223.33,0.00013996,2]
[345405274,1734244246873,-500.0,0.00013996,2]
[345405275,1734244246883,-1947.53,0.00013996,2]
[345405276,1734244246897,-3305.05,0.00013996,2]
[345405277,1734244246907,-500.0,0.00013996,2]
[345405278,1734244246917,-500.0,0.00013996,2]
[345405279,1734244246930,-500.0,0.00013996,2]
[345405280,1734244246939,-970.18,0.00013996,2]
[345405281,1734244246949,-500.0,0.00013996,2]
[345405282,1734244246959,-718.55,0.00013996,2]
[345405283,1734244246968,-500.0,0.00013996,2]
[345405284,1734244246978,-519.73,0.00013996,2]
[345405285,1734244246988,-637.74,0.00013996,2]
[345405286,1734244246997,-417.63061944,0.00013996,2]
[345405287,1734244247006,-676.94,0.00013996,2]
[345405288,1734244247019,-682.7,0.00013996,2]
[345405289,1734244247029,-500.0,0.00013996,2]
[345405290,1734244247039,-500.0,0.00013996,2]
[345405291,1734244247048,-500.0,0.00013996,2]
[345405292,1734244247062,-877.49,0.00013996,2]
[345405293,1734244247071,-637.74,0.00013996,2]
[345405294,1734244247081,-500.0,0.00013996,2]
[345405295,1734244247090,-500.0,0.00013996,2]
[345405296,1734244247100,-500.0,0.00013996,2]
[345405297,1734244247109,-500.0,0.00013996,2]
[345405298,1734244247119,-500.0,0.00013996,2]
[345405299,1734244247130,-263.9,0.00013996,2]
[345405300,1734244247140,-500.0,0.00013997,2]
[345405301,1734244247149,-500.0,0.00013997,2]
[345405302,1734244247159,-500.0,0.00013997,2]
[345405303,1734244247169,-500.0,0.00013997,2]
[345405304,1734244247179,-500.0,0.00013997,2]
[345405305,1734244247188,-500.0,0.00013997,2]
[345405306,1734244247198,-500.0,0.00013997,2]
[345405307,1734244247207,-500.0,0.00013997,2]
[345405308,1734244247217,-500.0,0.00013997,2]
[345405309,1734244247227,-500.0,0.00013997,2]
[345405310,1734244247237,-500.0,0.00013997,2]
[345405311,1734244247247,-500.0,0.00013997,2]
[345405312,1734244247257,-507.14471535,0.00013997,2]
[345405313,1734244247267,-500.0,0.00013997,2]
[345405314,1734244247277,-500.0,0.00013997,2]
[345405315,1734244247287,-500.0,0.00013997,2]
[345405316,1734244247297,-500.0,0.00013997,2]
[345405317,1734244247309,-500.0,0.00013997,2]
[345405318,1734244247318,-500.0,0.00013997,2]
[345405319,1734244247328,-500.0,0.00013997,2]
[345405320,1734244247338,-500.0,0.00013997,2]
[345405321,1734244247347,-500.0,0.00013997,2]
[345405322,1734244247356,-447.36,0.00013997,2]
[345405323,1734244247365,-500.0,0.00013997,2]
[345405324,1734244247374,-500.0,0.00013997,2]
[345405325,1734244247384,-472.64,0.00013997,2]